bitfinex-derivatives/quotes_SOLF0:USTF0_20260304
["timestamp","ask_amount","ask_price","bid_price","bid_amount"]
[1772667785452,3.78410032,90.939,90.902,1.88886006]
[1772667786056,3.78410032,90.939,90.886,1.88886006]
[1772667787454,3.78410032,90.938,90.887,11.79974339]
[1772667787658,3.78410032,90.938,90.888,1.89974339]
[1772667788758,3.78410032,90.938,90.891,1.89798751]
[1772667789353,3.78410032,90.938,90.896,1.89798751]
[1772667789560,3.78410032,90.954,90.901,1.89798751]
[1772667789959,3.4806198,90.96,90.901,1.89798751]
[1772667789960,13.67710032,90.953,90.901,1.89798751]
[1772667790151,3.78410032,90.952,90.901,1.89798751]
[1772667790458,3.78410032,90.952,90.911,1.89775931]
[1772667797464,3.78410032,90.952,90.905,9.898]
[1772667797656,3.78410032,90.952,90.91,1.90454791]
[1772667799165,3.78410032,90.952,90.913,9.898]
[1772667800867,3.78410032,90.952,90.913,12.21858417]
[1772667801863,3.4806198,90.96,90.914,2.32058417]
[1772667802064,3.62355601,90.964,90.914,2.32058417]
[1772667803469,3.62355601,90.964,90.915,9.897]
[1772667805073,3.62355601,90.964,90.919,9.897]
[1772667805269,3.62355601,90.975,90.921,2.28649218]
[1772667805668,3.62355601,90.969,90.921,2.28649218]
[1772667806370,3.62355601,90.969,90.931,9.896]
[1772667806572,3.62355601,90.969,90.921,2.28649218]
[1772667807372,3.62355601,90.969,90.924,9.896]
[1772667808467,3.62355601,90.969,90.931,2.26380325]
[1772667808675,185.30323711,90.976,90.931,2.26380325]
[1772667809173,3.80316986,90.995,90.941,2.26380325]
[1772667810376,3.80316986,90.995,90.953,9.893]
[1772667810570,3.80316986,90.995,90.941,2.26380325]
[1772667810873,3.80316986,90.979,90.921,2.22801012]
[1772667811973,3.80316986,90.979,90.931,2.32085754]
[1772667812475,3.80316986,90.979,90.935,2.32085754]
[1772667813074,3.80316986,90.979,90.921,2.32085754]
[1772667813272,19.772,91.023,90.901,2.32085754]
[1772667813273,3.80316986,90.959,90.901,2.32085754]
[1772667813576,3.80316986,90.959,90.911,2.32085754]
[1772667814376,3.80316986,90.959,90.919,9.897]
[1772667814881,3.80316986,90.959,90.931,9.896]
[1772667815077,3.80316986,90.974,90.932,2.34520406]
[1772667815376,3.80316986,90.999,90.932,2.34520406]
[1772667815969,3.4806198,90.99,90.932,2.34520406]
[1772667816269,3.80316986,90.989,90.932,2.34520406]
[1772667816466,3.80316986,90.989,90.941,2.37033793]
[1772667817474,3.80316986,90.989,90.95,3.4806198]
[1772667817680,3.80316986,90.989,90.951,2.37033793]
[1772667818281,3.80316986,90.989,90.938,2.48862643]
[1772667818682,3.80316986,90.979,90.938,2.48862643]
[1772667819078,3.80316986,90.979,90.94,12.38362643]
[1772667820280,3.80316986,90.979,90.94,2.48862643]
[1772667820783,3.80316986,90.979,90.932,9.895]
[1772667820983,3.80316986,90.979,90.938,9.895]
[1772667821182,3.80316986,90.979,90.927,2.49464411]
[1772667822082,3.80316986,90.979,90.938,2.5050612]
[1772667822283,3.80316986,90.979,90.93,3.4806198]
[1772667822482,3.80316986,90.979,90.93,5.985681]
[1772667822878,3.80316986,90.979,90.931,2.5050612]
[1772667823076,3.80316986,90.979,90.934,2.5050612]
[1772667823587,3.80316986,90.999,90.941,2.5050612]
[1772667824386,13.69016986,91.009,90.954,2.50529399]
[1772667824785,3.80316986,91.009,90.96,3.4806198]
[1772667825084,3.80316986,91.009,90.961,2.50529399]
[1772667825676,3.80316986,91.009,90.962,2.50529399]
[1772667826477,3.80316986,91.009,90.963,9.892]
[1772667826683,3.80316986,91.009,90.962,2.50529399]
[1772667829886,3.80316986,91.009,90.963,9.892]
[1772667830089,3.70204696,91.023,90.971,2.45107587]
[1772667830480,3.70204696,91.019,90.971,2.45107587]
[1772667831785,3.70204696,91.019,90.942,19.789]
[1772667831786,3.70204696,91.019,90.96,3.4806198]
[1772667831991,3.70204696,91.019,90.967,9.892]
[1772667832290,3.70204696,90.999,90.95,3.4806198]
[1772667832592,3.70204696,90.999,90.951,2.41912425]
[1772667832891,3.70204696,90.999,90.95,3.4806198]
[1772667832892,3.70204696,90.999,90.958,2.41912425]
[1772667833090,3.70204696,90.999,90.961,2.41912425]
[1772667833693,3.70204696,91.019,90.961,2.41912425]
[1772667834498,3.70204696,91.019,90.972,2.45017822]
[1772667835100,3.70204696,91.019,90.98,15.82079802]
[1772667835496,3.70204696,91.019,90.981,2.45017822]
[1772667836100,3.70204696,91.019,90.97,3.4806198]
[1772667836303,3.70204696,91.019,90.968,2.44483383]
[1772667836803,3.70204696,91.009,90.968,2.44483383]
[1772667837100,3.70204696,91.009,90.96,3.4806198]
[1772667837296,3.70204696,91.009,90.963,9.892]
[1772667837696,3.70204696,91.009,90.964,2.44483383]
[1772667838000,3.70204696,91.009,90.972,9.891]
[1772667840302,3.70204696,91.009,90.979,9.89]
[1772667840497,3.70204696,91.009,90.972,2.45105411]
[1772667840698,3.70204696,91.009,90.96,3.47613826]
[1772667841002,3.70204696,91.009,90.961,2.45105411]
[1772667842494,3.70204696,91.009,90.964,9.892]
[1772667842693,3.70204696,91.009,90.961,2.45105411]
[1772667845204,3.70204696,91.009,90.963,9.892]
[1772667846904,3.70204696,91.009,90.966,9.892]
[1772667847099,3.70204696,91.009,90.971,2.47180154]
[1772667847301,3.70204696,91.029,90.981,2.47180154]
[1772667847505,3.70204696,91.029,90.983,2.47180154]
[1772667847706,3.70204696,91.019,90.96,3.47613826]
[1772667847904,3.70204696,91.009,90.97,2.47180154]
[1772667848101,3.70204696,91.027,90.971,2.47180154]
[1772667848306,3.70204696,91.019,90.971,2.47180154]
[1772667849907,3.70204696,91.009,90.961,2.48619853]
[1772667850111,3.70204696,91.021,90.972,2.48619853]
[1772667851307,3.70204696,91.017,90.972,2.48619853]
[1772667852004,3.70204696,91.017,90.973,9.891]
[1772667852803,3.70204696,91.017,90.98,9.89]
[1772667853109,3.70204696,91.017,90.972,2.48619853]
[1772667854506,3.70204696,91.017,90.973,9.891]
[1772667855509,3.70204696,91.017,90.981,2.45735853]
[1772667856416,3.70204696,91.017,90.988,9.889]
[1772667863121,3.70204696,91.017,90.981,2.45735853]
[1772667863122,3.70204696,91.017,90.994,9.889]
[1772667867630,3.70204696,91.017,91.0,9.888]
[1772667868724,3.70204696,91.017,90.993,9.889]
[1772667872232,3.80675009,91.009,90.982,9.89]
[1772667874630,3.80675009,91.029,90.989,9.889]
[1772667877225,3.80675009,91.029,90.995,9.889]
[1772667879226,3.80675009,91.029,91.002,9.888]
[1772667880332,3.80675009,91.029,90.981,2.49486263]
[1772667880532,3.80675009,91.029,90.991,2.50997251]
[1772667880728,3.80675009,91.049,90.991,2.50997251]
[1772667880933,3.80675009,91.049,90.974,19.782]
[1772667880934,3.80675009,91.049,91.018,9.886]
[1772667882432,3.80675009,91.049,91.025,9.885]
[1772667882638,3.80675009,91.049,91.003,2.50997251]
[1772667883434,3.80675009,91.049,91.008,2.56171425]
[1772667885139,3.80675009,91.049,91.014,9.887]
[1772667885840,3.80675009,91.049,90.963,27.35257475]
[1772667885841,3.47613826,91.07,91.02,2.54600527]
[1772667886039,188.37453894,91.076,91.021,2.54600527]
[1772667886636,184.56778885,91.076,91.042,2.54237881]
[1772667888440,3.80675009,91.075,91.026,2.51621798]
[1772667889439,3.9604479,91.059,91.012,2.51496605]
[1772667889738,3.47613826,91.05,91.012,2.51496605]
[1772667890642,3.9604479,91.059,91.012,2.51496605]
[1772667891043,3.9604479,91.069,91.021,2.56146989]
[1772667891239,3.9604479,91.069,91.024,2.56146989]
[1772667891434,184.56778885,91.076,90.96,153.889]
[1772667891435,184.56778885,91.076,91.031,2.56146989]
[1772667891838,3.9604479,91.082,91.048,9.883]
[1772667894845,3.9604479,91.082,91.055,9.882]
[1772667895945,3.9604479,91.082,91.047,9.883]
[1772667898147,3.9604479,91.079,91.047,9.883]
[1772667898349,3.9604479,91.069,91.014,2.58065365]
[1772667898548,3.9604479,91.059,91.014,2.58065365]
[1772667899445,3.9604479,91.059,91.025,9.885]
[1772667899645,3.9604479,91.059,91.014,2.58065365]
[1772667899842,3.9604479,91.079,91.021,2.58065365]
[1772667900044,3.9604479,91.069,91.021,2.58065365]
[1772667901250,3.9604479,91.079,91.021,2.58065365]
[1772667901452,3.9604479,91.069,91.021,2.58065365]
[1772667901652,3.9604479,91.083,91.032,2.57755602]
[1772667902351,3.9604479,91.079,91.02,3.47255846]
[1772667902549,3.9604479,91.069,90.98,2.691354]
[1772667902754,3.9604479,91.069,91.011,2.691354]
[1772667903144,3.9604479,91.069,91.012,9.887]
[1772667903553,3.9604479,91.069,91.011,2.691354]
[1772667903853,3.9604479,91.069,91.02,3.47255846]
[1772667904457,3.9604479,91.069,91.021,2.64838873]
[1772667904652,3.9604479,91.079,91.031,2.64838873]
[1772667905354,3.9604479,91.079,91.032,9.885]
[1772667906850,3.9604479,91.079,91.04,2.6759666]
[1772667907152,3.9604479,91.089,91.041,2.6759666]
[1772667907357,3.47255846,91.1,91.041,2.6759666]
[1772667907552,3.9604479,91.099,91.041,2.6759666]
[1772667907753,3.9604479,91.099,91.051,9.883]
[1772667909758,3.9604479,91.099,91.051,12.55646095]
[1772667910455,9.876,91.115,91.061,2.64965629]
[1772667910456,3.9604479,91.115,91.061,2.64965629]
[1772667910654,3.9604479,91.129,91.071,2.64965629]
[1772667910956,3.9604479,91.129,91.083,9.879]
[1772667911154,3.9604479,91.129,91.046,19.767]
[1772667911155,0.00069946,91.116,91.09,3.47255846]
[1772667911360,0.00069946,91.116,91.091,2.64965629]
[1772667911759,0.00069946,91.116,91.092,9.878]
[1772667912751,0.00069946,91.116,91.103,9.877]
[1772667914055,0.00069946,91.116,91.11,9.876]
[1772667914459,3.9604479,91.147,91.106,2.59790341]
[1772667914656,3.9604479,91.147,91.11,3.47255846]
[1772667914856,3.9604479,91.161,91.123,9.875]
[1772667915457,3.47255846,91.16,91.123,9.875]
[1772667915662,3.9604479,91.159,91.123,9.875]
[1772667916261,3.9604479,91.159,91.131,9.874]
[1772667916858,3.9604479,91.159,91.122,9.875]
[1772667917058,3.9604479,91.173,91.122,9.875]
[1772667917266,3.9604479,91.173,91.123,2.57367606]
[1772667917560,3.9604479,91.173,91.135,9.873]
[1772667917761,3.9604479,91.189,91.131,2.57367606]
[1772667918169,3.9604479,91.189,91.151,9.872]
[1772667918561,3.9604479,91.189,91.131,2.57367606]
[1772667918759,7.14155016,91.18,91.134,9.874]
[1772667919060,7.14155016,91.18,91.134,12.45563797]
[1772667919260,7.14155016,91.18,91.135,2.58157863]
[1772667919854,3.6689917,91.18,91.135,2.58157863]
[1772667920660,3.6689917,91.18,91.13,3.47255846]
[1772667920661,3.6689917,91.179,91.118,2.53938814]
[1772667920863,3.6689917,91.159,91.101,2.53938814]
[1772667922266,3.6689917,91.159,91.104,2.48583102]
[1772667922668,3.6689917,91.159,91.111,2.48583102]
[1772667922867,3.6689917,91.149,91.094,2.48583102]
[1772667923061,3.47255846,91.14,91.094,2.48583102]
[1772667923265,7.14155016,91.14,91.094,2.48583102]
[1772667923465,3.6689917,91.139,91.094,2.48583102]
[1772667924763,3.6689917,91.139,91.087,9.879]
[1772667924969,3.6689917,91.119,91.065,2.46337411]
[1772667925668,3.6689917,91.119,91.066,9.881]
[1772667925863,3.6689917,91.119,91.066,12.34437411]
[1772667926267,3.6689917,91.119,91.07,5.85666162]
[1772667927172,3.6689917,91.119,91.071,2.38410316]
[1772667927365,3.6689917,91.119,91.079,9.88]
[1772667927970,3.6689917,91.119,91.071,2.38410316]
[1772667928366,19.739,91.173,91.081,2.46493615]
[1772667928367,3.47255846,91.14,91.081,2.46493615]
[1772667928572,3.47255846,91.15,91.091,2.46493615]
[1772667928769,3.894607,91.149,91.091,2.46493615]
[1772667929763,3.894607,91.149,91.1,3.47255846]
[1772667930264,3.894607,91.149,91.101,2.48684873]
[1772667930565,3.894607,91.159,91.101,2.48684873]
[1772667931470,3.894607,91.159,91.116,9.875]
[1772667932962,3.894607,91.149,91.116,9.875]
[1772667935667,3.894607,91.139,91.079,2.61353791]
[1772667935873,3.894607,91.119,91.07,3.47255846]
[1772667937169,3.894607,91.119,91.067,9.881]
[1772667937372,3.894607,91.109,91.059,9.882]
[1772667937972,3.894607,91.109,91.06,3.47255846]
[1772667938570,3.894607,91.109,91.059,9.882]
[1772667938976,3.894607,91.109,91.051,12.52224715]
[1772667939274,3.894607,91.108,91.052,2.60996103]
[1772667940070,3.894607,91.106,91.038,2.60996103]
[1772667940977,3.894607,91.098,91.038,2.60996103]
[1772667941674,3.894607,91.098,91.04,9.884]
[1772667941875,3.894607,91.098,91.041,2.81294414]
[1772667942375,3.894607,91.098,91.044,9.883]
[1772667945679,3.894607,91.098,91.044,12.79871483]
[1772667946378,3.894607,91.098,91.047,9.883]
[1772667952184,3.894607,91.098,91.047,12.81070141]
[1772667953982,3.894607,91.098,91.052,9.882]
[1772667956682,3.894607,91.098,91.058,9.882]
[1772667956888,3.894607,91.098,91.011,19.774]
[1772667956889,3.80599442,91.119,91.053,2.9549786]
[1772667958287,3.80599442,91.117,91.072,9.88]
[1772667960189,3.80599442,91.117,91.078,9.88]
[1772667960590,7.27534347,91.11,91.064,2.98809823]
[1772667961390,7.27534347,91.11,91.07,9.881]
[1772667961789,3.80599442,91.109,91.07,9.881]
[1772667961987,3.80599442,91.109,91.064,2.98809823]
[1772667962182,8.40753679,91.154,91.049,3.01748635]
[1772667962183,3.80599442,91.089,91.049,3.01748635]
[1772667962382,3.80599442,91.079,91.021,3.01748635]
[1772667962781,3.80599442,91.069,91.021,3.01748635]
[1772667964482,3.80599442,91.069,91.024,2.95348842]
[1772667967697,8.41322535,91.117,91.0,3.46934905]
[1772667967698,3.80599442,91.049,91.0,3.46934905]
[1772667967997,3.80599442,91.039,90.998,2.95610259]
[1772667968197,3.80599442,91.059,91.001,2.95653243]
[1772667968897,3.80599442,91.057,91.003,2.95653243]
[1772667969899,3.80599442,91.055,91.003,2.95653243]
[1772667971202,3.80599442,91.055,91.003,12.84453243]
[1772667972203,3.80599442,91.074,91.021,3.04558808]
[1772667972395,3.80599442,91.112,91.031,3.04558808]
[1772667972600,3.80599442,91.099,91.041,3.04558808]
[1772667972799,13.68399442,91.097,91.041,3.04558808]
[1772667973004,3.80599442,91.096,91.041,3.04558808]
[1772667974401,3.80599442,91.094,91.041,3.04558808]
[1772667974999,3.80599442,91.094,91.042,9.883]
[1772667975201,3.80599442,91.094,91.043,3.00665391]
[1772667975401,3.80599442,91.094,91.05,3.46934905]
[1772667976702,3.80599442,91.094,91.046,12.90457052]
[1772667978908,3.80599442,91.094,91.046,3.02157052]
[1772667980406,3.80599442,91.094,91.048,9.883]
[1772667980607,3.80599442,91.094,91.046,3.02157052]
[1772667981299,3.80599442,91.094,91.047,9.883]
[1772667981703,3.80599442,91.094,91.047,12.19804292]
[1772667981903,3.67640185,91.094,91.047,12.19804292]
[1772667982310,3.67640185,91.094,91.048,2.07485682]
[1772667982610,3.46934905,91.12,91.06,3.46934905]
[1772667982810,3.46934905,91.11,91.06,3.46934905]
[1772667983013,3.46934905,91.11,91.051,2.07485682]
[1772667984010,3.62205185,91.109,91.051,2.07485682]
[1772667984811,3.62205185,91.099,91.051,2.07485682]
[1772667985511,3.62205185,91.099,91.058,9.882]
[1772667988410,3.62205185,91.099,91.067,9.881]
[1772667988612,3.62205185,91.099,91.051,2.07485682]
[1772667989614,3.62205185,91.099,91.059,9.882]
[1772667989815,3.62205185,91.099,91.051,2.07485682]
[1772667990018,3.67529378,91.089,91.036,2.10738926]
[1772667991015,3.67529378,91.089,91.044,2.10525518]
[1772667992416,3.67529378,91.089,91.045,9.883]
[1772667992716,3.67529378,91.089,91.046,2.10150384]
[1772667994016,9.878,91.097,91.051,2.07451897]
[1772667994618,13.55329378,91.097,91.051,2.07451897]
[1772667995211,3.46934905,91.11,91.05,3.46934905]
[1772667995212,3.67529378,91.096,91.053,2.07451897]
[1772667996219,3.67529378,91.096,91.054,9.882]
[1772667996619,3.67529378,91.096,91.054,11.89017877]
[1772667996820,3.67529378,91.096,91.057,9.882]
[1772667997324,3.67529378,91.096,91.055,2.00817877]
[1772667999220,3.67529378,91.096,91.056,9.882]
[1772668006328,3.67529378,91.096,91.056,12.00876761]
[1772668007622,3.46934905,91.13,91.071,2.12676761]
[1772668007821,3.67529378,91.149,91.081,2.12676761]
[1772668008023,3.67529378,91.149,91.09,5.59611666]
[1772668008826,3.46934905,91.15,91.091,2.19711871]
[1772668009128,3.98054052,91.151,91.101,2.19711871]
[1772668009327,192.09229924,91.16,91.111,2.197225]
[1772668009328,9.871,91.156,91.111,2.197225]
[1772668009622,188.62295019,91.16,91.111,2.197225]
[1772668009827,9.871,91.159,91.111,2.197225]
[1772668012631,188.62295019,91.16,91.121,2.15484091]
[1772668013923,188.62295019,91.16,91.05,19.766]
[1772668013924,188.62295019,91.16,91.131,2.15484091]
[1772668017930,188.62295019,91.16,91.131,12.02884091]
[1772668018337,3.98054052,91.179,91.132,2.17045799]
[1772668018728,3.98054052,91.179,91.132,12.04445799]
[1772668019435,3.98054052,91.179,91.14,9.873]
[1772668020438,3.46343407,91.19,91.144,2.17773215]
[1772668021033,7.44397459,91.19,91.146,2.17773215]
[1772668021342,3.98054052,91.19,91.146,2.17773215]
[1772668021547,3.98054052,91.189,91.146,2.17773215]
[1772668021738,3.98054052,91.189,91.131,2.17773215]
[1772668021938,3.98054052,91.159,91.109,2.17773215]
[1772668022436,3.98054052,91.159,91.118,9.875]
[1772668022633,3.98054052,91.171,91.121,2.17575065]
[1772668023436,3.98054052,91.171,91.126,12.04975065]
[1772668023839,3.98054052,91.171,91.13,3.46343407]
[1772668024143,3.98054052,91.185,91.14,3.46343407]
[1772668024338,3.98054052,91.185,91.141,2.17522272]
[1772668024539,3.98054052,91.185,91.149,9.872]
[1772668024736,3.98054052,91.199,91.151,2.17522272]
[1772668025140,3.98054052,91.199,91.152,12.04722272]
[1772668025647,3.98054052,91.199,91.111,19.753]
[1772668025648,3.98054052,91.199,91.16,5.63865679]
[1772668025843,3.46343407,91.21,91.161,2.17522272]
[1772668026043,3.98054052,91.213,91.171,9.87]
[1772668026952,3.98054052,91.239,91.18,5.63719793]
[1772668028254,3.98054052,91.229,91.181,2.22622406]
[1772668029050,3.98054052,91.229,91.182,9.868]
[1772668032752,3.98054052,91.229,91.189,9.868]
[1772668035656,3.98054052,91.229,91.196,9.867]
[1772668035864,3.98054052,91.243,91.191,2.31994763]
[1772668036663,3.98054052,91.258,91.211,9.865]
[1772668037661,3.98054052,91.258,91.217,9.865]
[1772668041563,3.46343407,91.27,91.22,2.43760713]
[1772668041764,3.85579192,91.269,91.22,2.43760713]
[1772668042155,3.85579192,91.269,91.126,177.0]
[1772668042156,3.85579192,91.239,91.187,2.43754148]
[1772668042961,3.85579192,91.229,91.192,9.867]
[1772668043266,3.85579192,91.229,91.187,2.43754148]
[1772668043566,3.85579192,91.242,91.205,9.866]
[1772668046564,3.85579192,91.242,91.212,9.865]
[1772668047169,3.85579192,91.242,91.2,3.46343407]
[1772668047170,3.78525363,91.274,91.23,9.863]
[1772668048462,3.78525363,91.274,91.245,9.862]
[1772668049066,3.78525363,91.274,91.23,3.46343407]
[1772668049369,3.78525363,91.274,91.238,9.862]
[1772668049560,3.78525363,91.274,91.226,2.24151952]
[1772668049963,3.78525363,91.274,91.238,9.862]
[1772668050567,3.78525363,91.292,91.245,9.862]
[1772668050762,7.2486877,91.28,91.245,9.862]
[1772668051170,3.78525363,91.279,91.245,9.862]
[1772668051367,3.78525363,91.279,91.238,9.862]
[1772668051673,3.78525363,91.279,91.231,2.24430147]
[1772668052167,3.46343407,91.29,91.231,2.24430147]
[1772668052472,7.2486877,91.29,91.231,2.24430147]
[1772668052673,3.78525363,91.289,91.231,2.24430147]
[1772668053168,3.46343407,91.28,91.238,9.862]
[1772668053672,3.78525363,91.259,91.201,2.31894043]
[1772668054272,3.46343407,91.25,91.208,9.866]
[1772668054668,3.78525363,91.257,91.208,9.866]
[1772668054973,7.2486877,91.23,91.183,2.31331637]
[1772668055174,3.46343407,91.26,91.21,3.46343407]
[1772668055373,3.46343407,91.26,91.156,19.743]
[1772668055374,3.78525363,91.259,91.2,3.46343407]
[1772668055570,3.78525363,91.239,91.181,2.31331637]
[1772668056574,3.78525363,91.239,91.19,3.46343407]
[1772668057773,3.78525363,91.239,91.189,9.868]
[1772668057975,3.78525363,91.239,91.191,12.19011946]
[1772668059469,3.78525363,91.259,91.195,2.42339016]
[1772668059666,3.78525363,91.249,91.2,3.46343407]
[1772668060275,3.78525363,91.239,91.181,2.42618053]
[1772668061677,3.78525363,91.236,91.181,2.42618053]
[1772668061870,3.78525363,91.229,91.181,2.42618053]
[1772668064978,3.78525363,91.209,91.162,2.69764736]
[1772668071378,3.78525363,91.209,91.165,9.87]
[1772668072182,3.85235262,91.222,91.18,3.46343407]
[1772668072377,3.85235262,91.239,91.19,3.46343407]
[1772668073077,3.85235262,91.239,91.193,9.867]
[1772668073284,3.85235262,91.239,91.193,12.5858323]
[1772668073483,3.85235262,91.239,91.193,2.7188323]
[1772668074484,3.85235262,91.239,91.2,9.866]
[1772668074686,3.85235262,91.239,91.19,3.46343407]
[1772668074981,3.46343407,91.23,91.181,2.7032361]
[1772668075382,3.85235262,91.239,91.186,2.7032361]
[1772668077586,3.85235262,91.237,91.192,9.867]
[1772668078384,3.85235262,91.237,91.199,12.54235225]
[1772668078684,3.85235262,91.249,91.2,2.67635225]
[1772668079387,3.85235262,91.245,91.201,9.866]
[1772668080389,13.71435262,91.243,91.201,9.866]
[1772668080581,8.48595879,91.278,91.15,2.6766749]
[1772668080582,3.85235262,91.219,91.15,2.6766749]
[1772668080786,3.85235262,91.199,91.15,2.6766749]
[1772668081484,9.865,91.209,91.161,2.6766749]
[1772668082683,3.85235262,91.206,91.154,9.871]
[1772668083090,3.85235262,91.206,91.157,2.53615696]
[1772668084591,9.866,91.203,91.157,2.53615696]
[1772668084986,3.85235262,91.206,91.157,2.53615696]
[1772668086192,3.85235262,91.206,91.158,9.871]
[1772668087196,3.85235262,91.206,91.158,12.42817894]
[1772668087396,3.85235262,91.206,91.16,3.45918564]
[1772668087896,3.85235262,91.206,91.162,9.871]
[1772668088997,3.85235262,91.206,91.165,2.55161633]
[1772668089497,3.85235262,91.229,91.181,2.55161633]
[1772668090395,3.85235262,91.249,91.191,2.55740392]
[1772668091399,3.45918564,91.24,91.191,12.42440392]
[1772668091598,3.85235262,91.249,91.191,12.42440392]
[1772668092593,3.45918564,91.24,91.192,2.50935052]
[1772668092800,9.861,91.246,91.194,2.50935052]
[1772668093896,13.71335262,91.246,91.194,2.50935052]
[1772668094498,13.71335262,91.246,91.196,2.53708213]
[1772668096895,13.71335262,91.246,91.151,19.744]
[1772668096896,3.85235262,91.229,91.184,2.53582274]
[1772668097196,3.85235262,91.229,91.171,2.53582274]
[1772668097395,3.85235262,91.229,91.187,12.40382274]
[1772668097596,3.85235262,91.229,91.188,2.53582274]
[1772668098399,3.85235262,91.229,91.189,9.868]
[1772668098701,7.25675509,91.24,91.19,2.52873485]
[1772668099196,3.79756945,91.239,91.192,9.867]
[1772668099500,3.79756945,91.239,91.193,2.52868509]
[1772668101698,3.79756945,91.237,91.193,2.52868509]
[1772668108101,3.79756945,91.237,91.174,2.80007905]
[1772668108406,3.79756945,91.237,91.191,2.79792711]
[1772668108909,3.79756945,91.237,91.193,2.79792711]
[1772668110204,3.79756945,91.237,91.18,3.45918564]
[1772668110504,3.81553488,91.229,91.175,2.80742759]
[1772668111005,3.81553488,91.228,91.175,2.80742759]
[1772668111208,3.81553488,91.219,91.16,6.26661323]
[1772668111400,3.81553488,91.219,91.161,2.80742759]
[1772668112506,3.81553488,91.219,91.167,9.87]
[1772668113500,9.865,91.218,91.161,2.80742759]
[1772668113705,3.81553488,91.217,91.161,2.80742759]
[1772668113908,3.81553488,91.217,91.17,3.45918564]
[1772668114407,3.45918564,91.23,91.171,2.79768397]
[1772668114605,3.81553488,91.231,91.181,2.79768397]
[1772668115403,3.81553488,91.228,91.181,2.79768397]
[1772668116601,3.81553488,91.226,91.17,3.45918564]
[1772668116804,3.81553488,91.199,91.139,2.81636792]
[1772668117110,3.81553488,91.189,91.14,3.45918564]
[1772668117307,3.81553488,91.189,91.107,27.35257475]
[1772668117308,3.81553488,91.189,91.15,3.45918564]
[1772668119012,3.81553488,91.189,91.141,2.81636792]
[1772668121412,3.81553488,91.189,91.13,3.45918564]
[1772668122513,3.81553488,91.184,91.13,3.45918564]
[1772668122916,3.81553488,91.169,91.113,2.50108309]
[1772668123108,3.81553488,91.167,91.113,2.50108309]
[1772668123312,3.81553488,91.159,91.1,5.96026873]
[1772668123714,3.81553488,91.156,91.101,2.50108309]
[1772668123915,3.81553488,91.156,91.11,3.45918564]
[1772668124612,3.81553488,91.149,91.09,3.45918564]
[1772668125420,3.81553488,91.146,91.09,3.45918564]
[1772668126118,3.81553488,91.143,91.09,3.45918564]
[1772668126315,3.81553488,91.143,91.1,3.45918564]
[1772668127021,3.81553488,91.143,91.091,2.51627229]
[1772668127915,3.81553488,91.143,91.09,3.45918564]
[1772668127916,9.874,91.13,91.09,3.45918564]
[1772668128118,3.81553488,91.129,91.077,2.51627229]
[1772668129215,3.81553488,91.129,91.07,3.45918564]
[1772668129413,3.98640769,91.17,91.091,2.54343074]
[1772668129610,198.98890571,91.197,91.091,2.54343074]
[1772668129611,3.98640769,91.149,91.091,2.54343074]
[1772668130012,3.98640769,91.131,91.079,2.54343074]
[1772668130210,3.45918564,91.13,91.079,2.54343074]
[1772668130423,3.98640769,91.129,91.079,2.54343074]
[1772668130816,3.98640769,91.115,91.06,3.45918564]
[1772668131019,3.98640769,91.109,91.051,2.54734704]
[1772668131219,3.98640769,91.109,91.07,3.45918564]
[1772668131925,3.98640769,91.109,91.061,2.54734704]
[1772668134720,9.875,91.121,91.08,3.45918564]
[1772668135227,3.98640769,91.123,91.08,3.45918564]
[1772668136429,9.874,91.129,91.081,2.70746501]
[1772668136825,9.874,91.126,91.081,2.70746501]
[1772668137029,3.98640769,91.125,91.081,2.70746501]
[1772668137421,9.875,91.124,91.081,2.70746501]
[1772668138929,3.98640769,91.123,91.081,2.70746501]
[1772668139329,13.86140769,91.12,91.081,2.70746501]
[1772668140633,3.98640769,91.116,91.065,2.6316562]
[1772668142229,9.875,91.125,91.08,6.09084184]
[1772668142433,3.98640769,91.132,91.08,6.09888096]
[1772668142833,3.98640769,91.129,91.07,3.46722476]
[1772668143333,3.98640769,91.116,91.065,2.63469396]
[1772668144437,3.98640769,91.113,91.065,2.63469396]
[1772668144637,3.98640769,91.113,91.06,3.46722476]
[1772668145540,3.98640769,91.113,91.061,2.52224137]
[1772668145834,3.98640769,91.105,91.05,3.46722476]
[1772668146030,3.98640769,91.105,91.05,5.98946613]
[1772668146230,3.98640769,91.105,91.051,2.52101113]
[1772668146440,3.98640769,91.119,91.071,2.52101113]
[1772668146637,3.98640769,91.149,91.1,3.46722476]
[1772668147336,13.85840769,91.149,91.1,3.46722476]
[1772668148140,9.872,91.145,91.1,3.46722476]
[1772668148339,3.98640769,91.148,91.101,2.5441699]